[Event "EYCC Girls U10 2018"]
[Site "Riga"]
[Date "2018.08.20"]
[Round "1"]
[White "Shvedova, Alexandra"]
[Black "Veverkova, Dorota"]
[Result "1-0"]
[ECO "D60"]
[WhiteElo "1758"]
[BlackElo "1243"]
[Annotator "NA"]
[PlyCount "85"]
[EventDate "2018.08.20"]
[EventType "swiss"]
[EventCountry "LAT"]
[SourceTitle "playchess.com"]
[Source "ChessBase"]
[SourceQuality "1"]
[TimeControl "40/5400+30:1800+30"]

1. d4 {[%emt 0:00:00]} d5 {[%emt 0:00:00]} 2. c4 {[%emt 0:00:00]} e6 {[%emt 0:00:00]} 3. Nc3 {[%emt 0:00:00]} Nf6 {[%emt 0:00:13]} 4. Bg5 {[%emt 0:00:00]} Be7 {[%emt 0:00:16]} 5. Nf3 {[%emt 0:00:13]} O-O {[%emt 0:00:47]} 6. e3 {[%emt 0:00:07]} Nbd7 {[%emt 0:01:21]} 7. Bd3 {[%emt 0:01:02]} c5 {[%emt 0:02:16]} 8. O-O {[%emt 0:01:43]} dxc4 {[%emt 0:02:55]} 9. Bxc4 {[%emt 0:00:06]} b6 {[%emt 0:03:10]} 10. d5 {[%emt 0:05:35]} Nxd5 {[%emt 0:03:52]} 11. Bxd5 {[%emt 0:00:25]} exd5 {[%emt 0:01:05]} 12. Qxd5 {[%emt 0:01:17]} Rb8 {[%emt 0:01:03]} 13. Bf4 {[%emt 0:00:36]} Bb7 {[%emt 0:01:14]} 14. Qd1 {[%emt 0:00:11]} Rc8 {[%emt 0:01:56]} 15. Nd5 {[%emt 0:02:34]} Rc6 {[%emt 0:07:32]} 16. Nxe7+ {[%emt 0:03:46]} Qxe7 {[%emt 0:00:51]} 17. Bg5 {[%emt 0:01:09]} Qe6 {[%emt 0:02:19]} 18. Qa4 {[%emt 0:03:35]} h6 {[%emt 0:02:44]} 19. Bf4 {[%emt 0:01:01]} Qg4 {[%emt 0:05:08]} 20. h3 Qf5 {[%emt 0:03:19]} 21. Qxa7 {[%emt 0:05:15]} Ba8 {[%emt 0:02:56]} 22. Rfd1 {[%emt 0:05:39]} Nf6 {[%emt 0:05:32]} 23. Bd6 {[%emt 0:08:11]} Rd8 {[%emt 0:01:53]} 24. Bc7 {[%emt 0:01:34]} Re8 {[%emt 0:04:01]} 25. Bb8 {[%emt 0:08:09]} Rcc8 {[%emt 0:01:07]} 26. Qxa8 {[%emt 0:00:30]} Rxb8 {[%emt 0:00:26]} 27. Qa7 {[%emt 0:00:51]} Qc2 28. Rd2 {[%emt 0:04:35]} Qe4 {[%emt 0:04:55]} 29. Rad1 {[%emt 0:01:40]} Qc6 {[%emt 0:04:04]} 30. Ne5 {[%emt 0:03:37]} Qb7 {[%emt 0:01:47]} 31. Qxb7 {[%emt 0:00:32]} Rxb7 {[%emt 0:00:15]} 32. Nc4 {[%emt 0:00:29]} Ne4 {[%emt 0:01:15]} 33. Rd8 {[%emt 0:01:00]} Rxd8 {[%emt 0:00:32]} 34. Rxd8+ {[%emt 0:00:04]} Kh7 {[%emt 0:00:10]} 35. f3 {[%emt 0:02:37]} Nf6 {[%emt 0:00:33]} 36. a3 {[%emt 0:01:24]} Rd7 {[%emt 0:01:54]} 37. Rb8 {[%emt 0:05:30]} Nd5 {[%emt 0:01:02]} 38. Nxb6 {[%emt 0:00:14]} Nxb6 {[%emt 0:00:25]} 39. Rxb6 {[%emt 0:00:04]} Rd3 {[%emt 0:01:01]} 40. Kf2 {[%emt 0:00:00]} Rd2+ {[%emt 0:00:00]} 41. Kf1 {[%emt 0:03:35]} Rd3 {[%emt 0:01:34]} 42. Ke2 {[%emt 0:00:05]} c4 {[%emt 0:00:16]} 43. Rb4 {[%emt 0:00:27]} 1-0

[Event "EYCC Girls U10 2018"]
[Site "Riga"]
[Date "2018.08.20"]
[Round "1"]
[White "Zhapova, Yana"]
[Black "Kulish, Glafira"]
[Result "1-0"]
[ECO "B42"]
[WhiteElo "1733"]
[BlackElo "1222"]
[Annotator "NA"]
[PlyCount "67"]
[EventDate "2018.08.20"]
[EventType "swiss"]
[EventCountry "LAT"]
[SourceTitle "playchess.com"]
[Source "ChessBase"]
[SourceQuality "1"]
[TimeControl "40/5400+30:1800+30"]

1. e4 {[%emt 0:00:00]} c5 {[%emt 0:00:52]} 2. Nf3 {[%emt 0:00:00]} e6 {[%emt 0:02:13]} 3. d4 {[%emt 0:00:16]} cxd4 {[%emt 0:03:04]} 4. Nxd4 {[%emt 0:00:40]} a6 {[%emt 0:02:37]} 5. Bd3 {[%emt 0:01:46]} Qc7 {[%emt 0:03:12]} 6. O-O {[%emt 0:01:08]} Nf6 {[%emt 0:04:30]} 7. Qe2 {[%emt 0:02:36]} Nc6 {[%emt 0:04:59]} 8. Nxc6 {[%emt 0:03:15]} dxc6 {[%emt 0:01:42]} 9. c4 {[%emt 0:03:02]} e5 {[%emt 0:16:03]} 10. Nc3 {[%emt 0:12:21]} Bc5 {[%emt 0:12:12]} 11. Be3 {[%emt 0:02:47]} Qd6 {[%emt 0:21:40]} 12. Rad1 {[%emt 0:15:55]} Bxe3 {[%emt 0:03:22]} 13. Qxe3 {[%emt 0:00:27]} Ng4 {[%emt 0:04:22]} 14. Qg3 {[%emt 0:02:16]} h5 {[%emt 0:01:39]} 15. Be2 {[%emt 0:01:36]} Qf6 {[%emt 0:02:35]} 16. h3 {[%emt 0:04:23]} h4 {[%emt 0:05:52]} 17. Qd3 {[%emt 0:30:46]} Nh6 {[%emt 0:01:09]} 18. f4 {[%emt 0:03:02]} O-O {[%emt 0:01:06]} 19. Qd6 {[%emt 0:03:19]} Qxd6 {[%emt 0:02:32]} 20. Rxd6 {[%emt 0:00:11]} f6 {[%emt 0:00:47]} 21. c5 {[%emt 0:01:01]} Nf7 {[%emt 0:00:25]} 22. Bc4 {[%emt 0:00:18]} Kh7 {[%emt 0:00:45]} 23. Bxf7 {[%emt 0:00:14]} Rxf7 {[%emt 0:00:08]} 24. fxe5 {[%emt 0:00:10]} f5 {[%emt 0:01:40]} 25. e6 {[%emt 0:00:17]} Re7 {[%emt 0:01:12]} 26. exf5 {[%emt 0:00:13]} Rb8 {[%emt 0:01:02]} 27. Na4 {[%emt 0:01:04]} Kg8 {[%emt 0:00:54]} 28. Rd8+ {[%emt 0:00:15]} Kh7 {[%emt 0:00:14]} 29. Nb6 {[%emt 0:00:04]} Rc7 {[%emt 0:00:17]} 30. f6 {[%emt 0:01:08]} gxf6 {[%emt 0:00:21]} 31. Rxf6 {[%emt 0:00:05]} Kg7 {[%emt 0:00:34]} 32. Rf7+ {[%emt 0:01:45]} Rxf7 {[%emt 0:00:16]} 33. exf7 {[%emt 0:00:04]} Kxf7 {[%emt 0:00:15]} 34. Rxc8 {[%emt 0:00:19]} 1-0

[Event "EYCC Girls U10 2018"]
[Site "Riga"]
[Date "2018.08.20"]
[Round "1"]
[White "Svergina, Sofya"]
[Black "Gaszka, Zuzanna"]
[Result "1-0"]
[ECO "E73"]
[WhiteElo "1657"]
[BlackElo "1183"]
[Annotator "NA"]
[PlyCount "53"]
[EventDate "2018.08.20"]
[EventType "swiss"]
[EventCountry "LAT"]
[SourceTitle "playchess.com"]
[Source "ChessBase"]
[SourceQuality "1"]
[TimeControl "40/5400+30:1800+30"]

1. d4 {[%emt 0:00:00]} Nf6 {[%emt 0:00:07]} 2. c4 {[%emt 0:00:00]} g6 {[%emt 0:01:31]} 3. Nc3 {[%emt 0:00:00]} Bg7 {[%emt 0:02:21]} 4. e4 {[%emt 0:00:03]} d6 {[%emt 0:01:58]} 5. Be2 {[%emt 0:00:16]} O-O {[%emt 0:01:40]} 6. Be3 {[%emt 0:00:15]} a6 {[%emt 0:03:25]} 7. Nf3 {[%emt 0:05:36]} e5 {[%emt 0:02:28]} 8. d5 {[%emt 0:05:47]} Nbd7 {[%emt 0:03:49]} 9. h3 {[%emt 0:00:54]} Ne8 {[%emt 0:06:33]} 10. g4 {[%emt 0:15:40]} Nef6 {[%emt 0:06:25]} 11. Nd2 {[%emt 0:04:06]} Re8 {[%emt 0:04:12]} 12. h4 {[%emt 0:01:06]} h6 {[%emt 0:08:21]} 13. Nb3 {[%emt 0:03:15]} Qe7 {[%emt 0:01:48]} 14. g5 {[%emt 0:05:05]} hxg5 {[%emt 0:03:32]} 15. Bxg5 {[%emt 0:10:37]} Qf8 {[%emt 0:03:20]} 16. Qd2 {[%emt 0:00:45]} a5 {[%emt 0:03:21]} 17. O-O-O {[%emt 0:04:17]} a4 {[%emt 0:01:42]} 18. Na1 {[%emt 0:00:04]} Nc5 {[%emt 0:01:45]} 19. Bxf6 {[%emt 0:01:04]} Bxf6 {[%emt 0:01:08]} 20. h5 {[%emt 0:00:46]} Qe7 {[%emt 0:02:38]} 21. Rdg1 {[%emt 0:00:27]} Kg7 {[%emt 0:01:54]} 22. hxg6 {[%emt 0:00:35]} Bg5 {[%emt 0:07:38]} 23. Rxg5 {[%emt 0:00:13]} f6 {[%emt 0:01:19]} 24. Rh7+ {[%emt 0:01:01]} Kg8 {[%emt 0:00:31]} 25. Rgh5 {[%emt 0:02:26]} Qf8 {[%emt 0:02:32]} 26. Rh8+ {[%emt 0:00:06]} Kg7 {[%emt 0:00:14]} 27. Qh6# {[%emt 0:00:05]} 1-0

[Event "EYCC Girls U10 2018"]
[Site "Riga"]
[Date "2018.08.20"]
[Round "1"]
[White "Valeine, Ieva"]
[Black "Gryga, Daryna"]
[Result "0-1"]
[ECO "E10"]
[WhiteElo "1233"]
[BlackElo "1756"]
[Annotator "NA"]
[PlyCount "98"]
[EventDate "2018.08.20"]
[EventType "swiss"]
[EventCountry "LAT"]
[SourceTitle "playchess.com"]
[Source "ChessBase"]
[SourceQuality "1"]
[TimeControl "40/5400+30:1800+30"]

1. d4 {[%emt 0:00:00]} Nf6 {[%emt 0:00:00]} 2. c4 {[%emt 0:00:00]} e6 {[%emt 0:00:03]} 3. Nf3 {[%emt 0:00:17]} c5 {[%emt 0:00:48]} 4. g3 {[%emt 0:02:32]} b6 {[%emt 0:25:43]} 5. Bg2 {[%emt 0:01:49]} Bb7 {[%emt 0:00:23]} 6. O-O {[%emt 0:00:23]} Be7 {[%emt 0:02:53]} 7. Nc3 {[%emt 0:03:53]} O-O {[%emt 0:07:14]} 8. Bg5 {[%emt 0:02:18]} h6 {[%emt 0:08:37]} 9. Bf4 {[%emt 0:03:00]} cxd4 {[%emt 0:10:30]} 10. Nxd4 {[%emt 0:00:39]} Bxg2 {[%emt 0:00:13]} 11. Kxg2 {[%emt 0:00:32]} Nc6 {[%emt 0:05:46]} 12. Nxc6 {[%emt 0:02:26]} dxc6 {[%emt 0:00:07]} 13. Qa4 {[%emt 0:00:43]} Qc8 {[%emt 0:01:58]} 14. Rad1 {[%emt 0:02:04]} Qb7 {[%emt 0:02:46]} 15. Kg1 {[%emt 0:00:59]} Rfd8 {[%emt 0:00:46]} 16. a3 {[%emt 0:07:31]} Rac8 {[%emt 0:06:09]} 17. b4 {[%emt 0:05:18]} Kh8 {[%emt 0:06:07]} 18. e4 {[%emt 0:02:47]} c5 {[%emt 0:04:34]} 19. e5 {[%emt 0:02:50]} Nd7 {[%emt 0:02:49]} 20. bxc5 {[%emt 0:22:32]} Nxc5 {[%emt 0:00:34]} 21. Qc2 {[%emt 0:01:24]} Nd7 {[%emt 0:02:01]} 22. Nb5 {[%emt 0:00:30]} a6 {[%emt 0:00:21]} 23. Nd6 {[%emt 0:00:27]} Bxd6 {[%emt 0:00:14]} 24. exd6 {[%emt 0:00:28]} b5 {[%emt 0:00:16]} 25. Rb1 {[%emt 0:00:36]} Qc6 {[%emt 0:01:20]} 26. Rfc1 {[%emt 0:04:37]} e5 {[%emt 0:00:32]} 27. Be3 {[%emt 0:01:30]} Qxd6 {[%emt 0:00:14]} 28. c5 {[%emt 0:01:21]} Qc6 {[%emt 0:01:05]} 29. Qf5 {[%emt 0:02:38]} Kg8 {[%emt 0:01:04]} 30. Rb2 {[%emt 0:03:57]} Qb7 {[%emt 0:05:41]} 31. Rbc2 {[%emt 0:01:38]} Rc6 {[%emt 0:01:06]} 32. f4 {[%emt 0:04:10]} exf4 {[%emt 0:00:31]} 33. Bxf4 {[%emt 0:00:10]} Nf6 {[%emt 0:00:07]} 34. Bd6 {[%emt 0:02:36]} Qa7 {[%emt 0:00:58]} 35. Re1 {[%emt 0:02:52]} Rcxd6 {[%emt 0:01:18]} 36. Kf1 {[%emt 0:03:42]} Rd5 {[%emt 0:00:20]} 37. Qf2 {[%emt 0:00:58]} Rc8 {[%emt 0:01:15]} 38. c6 {[%emt 0:00:33]} Qxf2+ {[%emt 0:00:20]} 39. Kxf2 {[%emt 0:00:16]} Rd6 {[%emt 0:00:35]} 40. c7 {[%emt 0:00:00]} Rd7 {[%emt 0:00:00]} 41. Rc6 {[%emt 0:01:59]} Rdxc7 {[%emt 0:02:14]} 42. Rxa6 {[%emt 0:00:31]} Rc2+ {[%emt 0:00:06]} 43. Kg1 {[%emt 0:00:17]} Rc1 {[%emt 0:00:09]} 44. Rxc1 {[%emt 0:00:26]} Rxc1+ {[%emt 0:00:01]} 45. Kg2 {[%emt 0:00:25]} Rc2+ {[%emt 0:00:07]} 46. Kh3 {[%emt 0:00:16]} Ra2 {[%emt 0:00:08]} 47. Rb6 {[%emt 0:00:48]} Rxa3 {[%emt 0:00:07]} 48. Rxb5 {[%emt 0:00:44]} g5 {[%emt 0:00:14]} 49. Rb6 {[%emt 0:02:17]} Kg7 {[%emt 0:00:03]} 0-1

[Event "EYCC Girls U10 2018"]
[Site "Riga"]
[Date "2018.08.20"]
[Round "1"]
[White "Cammalleri, Elena"]
[Black "Vlasova, Olesia"]
[Result "0-1"]
[ECO "A48"]
[WhiteElo "1202"]
[BlackElo "1693"]
[Annotator "NA"]
[PlyCount "174"]
[EventDate "2018.08.20"]
[EventType "swiss"]
[EventCountry "LAT"]
[SourceTitle "playchess.com"]
[Source "ChessBase"]
[SourceQuality "1"]
[TimeControl "40/5400+30:1800+30"]

1. d4 {[%emt 0:00:00]} Nf6 {[%emt 0:00:00]} 2. Nf3 {[%emt 0:00:00]} g6 {[%emt 0:00:00]} 3. Nbd2 {[%emt 0:00:16]} d5 {[%emt 0:00:12]} 4. e3 {[%emt 0:00:25]} Bg7 {[%emt 0:00:21]} 5. Bd3 {[%emt 0:00:32]} O-O {[%emt 0:00:39]} 6. O-O {[%emt 0:00:24]} b6 {[%emt 0:02:22]} 7. b3 {[%emt 0:01:11]} Ba6 {[%emt 0:01:38]} 8. Bxa6 {[%emt 0:01:22]} Nxa6 {[%emt 0:00:08]} 9. Bb2 {[%emt 0:02:32]} Qd6 {[%emt 0:06:26]} 10. Ne5 {[%emt 0:04:45]} c6 {[%emt 0:10:41]} 11. f4 {[%emt 0:05:16]} Rac8 {[%emt 0:04:34]} 12. Rc1 {[%emt 0:04:11]} Rfd8 {[%emt 0:01:30]} 13. Qe2 {[%emt 0:06:55]} Nb8 {[%emt 0:01:57]} 14. c4 {[%emt 0:03:24]} c5 {[%emt 0:13:24]} 15. Ba3 {[%emt 0:05:36]} e6 {[%emt 0:07:25]} 16. Rfd1 {[%emt 0:08:07]} Nbd7 {[%emt 0:05:25]} 17. cxd5 {[%emt 0:08:03]} exd5 {[%emt 0:01:29]} 18. Nxd7 {[%emt 0:05:22]} Rxd7 {[%emt 0:02:52]} 19. dxc5 {[%emt 0:06:28]} bxc5 {[%emt 0:00:25]} 20. b4 {[%emt 0:04:16]} Re8 {[%emt 0:07:41]} 21. bxc5 {[%emt 0:02:16]} Qxf4 {[%emt 0:01:20]} 22. exf4 {[%emt 0:01:31]} Rxe2 {[%emt 0:00:04]} 23. c6 {[%emt 0:01:55]} Rc7 {[%emt 0:00:24]} 24. Bd6 {[%emt 0:00:22]} Rc8 {[%emt 0:00:29]} 25. c7 {[%emt 0:00:23]} Ne8 {[%emt 0:00:44]} 26. Bc5 {[%emt 0:05:08]} Rxc7 {[%emt 0:00:39]} 27. Kf1 {[%emt 0:01:38]} Re6 {[%emt 0:00:24]} 28. Bf2 {[%emt 0:01:03]} Rxc1 {[%emt 0:06:17]} 29. Rxc1 {[%emt 0:00:15]} d4 {[%emt 0:00:28]} 30. Re1 {[%emt 0:02:33]} Rxe1+ {[%emt 0:00:47]} 31. Kxe1 {[%emt 0:00:52]} Nd6 {[%emt 0:00:09]} 32. Ke2 {[%emt 0:01:21]} Kf8 {[%emt 0:04:27]} 33. Kd3 {[%emt 0:01:03]} Nb5 {[%emt 0:00:22]} 34. Kc4 {[%emt 0:01:15]} Nc3 {[%emt 0:03:22]} 35. a3 Ke7 {[%emt 0:00:21]} 36. Bxd4 {[%emt 0:02:57]} Bxd4 {[%emt 0:00:08]} 37. Kxd4 {[%emt 0:00:20]} Nb5+ {[%emt 0:00:04]} 38. Kc5 {[%emt 0:00:50]} Nxa3 {[%emt 0:00:13]} 39. Kb4 {[%emt 0:00:32]} Nc2+ {[%emt 0:00:07]} 40. Ka5 {[%emt 0:00:00]} Ne3 {[%emt 0:00:00]} 41. g3 {[%emt 0:01:03]} Ng4 {[%emt 0:00:31]} 42. Nf1 {[%emt 0:00:51]} Ke6 {[%emt 0:01:11]} 43. Ka6 {[%emt 0:00:15]} Kf5 {[%emt 0:00:24]} 44. Kxa7 {[%emt 0:00:15]} Ke4 {[%emt 0:00:38]} 45. h3 {[%emt 0:00:48]} Nf2 {[%emt 0:00:16]} 46. Nd2+ {[%emt 0:00:42]} Kf5 {[%emt 0:01:14]} 47. h4 {[%emt 0:00:42]} Kg4 {[%emt 0:00:33]} 48. Nf1 {[%emt 0:00:32]} Kf3 {[%emt 0:00:10]} 49. Kb6 {[%emt 0:00:49]} Kg2 {[%emt 0:00:11]} 50. Nd2 {[%emt 0:00:11]} Kxg3 {[%emt 0:00:06]} 51. Kc5 {[%emt 0:02:16]} Kxf4 {[%emt 0:00:32]} 52. Kd4 {[%emt 0:00:22]} f5 {[%emt 0:00:16]} 53. Nf1 {[%emt 0:00:45]} Ng4 {[%emt 0:01:05]} 54. Kd3 {[%emt 0:00:42]} Kf3 {[%emt 0:00:12]} 55. Nd2+ {[%emt 0:00:20]} Kg2 {[%emt 0:00:36]} 56. Ke2 {[%emt 0:00:20]} Kg3 {[%emt 0:03:26]} 57. Nf3 {[%emt 0:00:28]} Nh2 {[%emt 0:00:57]} 58. Ng5 {[%emt 0:01:13]} f4 {[%emt 0:00:13]} 59. Ne4+ {[%emt 0:00:46]} Kg2 {[%emt 0:00:10]} 60. Ke1 {[%emt 0:01:39]} f3 {[%emt 0:00:07]} 61. Nf2 {[%emt 0:00:48]} h5 {[%emt 0:01:21]} 62. Nd3 {[%emt 0:01:05]} Ng4 {[%emt 0:00:30]} 63. Nf4+ {[%emt 0:00:45]} Kg3 {[%emt 0:00:10]} 64. Nd3 {[%emt 0:00:28]} f2+ {[%emt 0:00:05]} 65. Nxf2 {[%emt 0:00:19]} Nxf2 {[%emt 0:00:06]} 66. Kf1 {[%emt 0:00:12]} Ne4 {[%emt 0:00:10]} 67. Kg1 {[%emt 0:00:48]} Kxh4 {[%emt 0:00:07]} 68. Kh2 {[%emt 0:00:34]} g5 {[%emt 0:00:06]} 69. Kg2 {[%emt 0:00:14]} Kg4 {[%emt 0:00:30]} 70. Kg1 {[%emt 0:00:14]} Kh3 {[%emt 0:00:13]} 71. Kh1 {[%emt 0:00:17]} Nf2+ {[%emt 0:00:06]} 72. Kg1 {[%emt 0:00:12]} Kg3 {[%emt 0:00:06]} 73. Kf1 {[%emt 0:00:10]} Kh2 {[%emt 0:00:04]} 74. Kxf2 {[%emt 0:00:27]} g4 {[%emt 0:00:05]} 75. Kf1 {[%emt 0:00:18]} g3 {[%emt 0:00:04]} 76. Ke2 {[%emt 0:00:58]} g2 {[%emt 0:00:05]} 77. Ke3 {[%emt 0:00:21]} g1=Q+ {[%emt 0:00:06]} 78. Ke4 {[%emt 0:00:17]} Qf2 {[%emt 0:00:06]} 79. Kd5 {[%emt 0:00:35]} Kg3 {[%emt 0:00:06]} 80. Ke5 {[%emt 0:00:28]} h4 {[%emt 0:00:06]} 81. Ke6 {[%emt 0:00:12]} h3 {[%emt 0:00:05]} 82. Ke5 {[%emt 0:00:23]} h2 {[%emt 0:00:07]} 83. Ke6 {[%emt 0:00:08]} h1=Q {[%emt 0:00:10]} 84. Kd6 {[%emt 0:00:19]} Qd4+ {[%emt 0:00:07]} 85. Ke6 {[%emt 0:00:23]} Qc6+ {[%emt 0:00:13]} 86. Kf7 {[%emt 0:00:16]} Qdd7+ {[%emt 0:00:07]} 87. Kf8 {[%emt 0:00:31]} Qa8# {[%emt 0:00:06]} 0-1

[Event "EYCC Girls U10 2018"]
[Site "Riga"]
[Date "2018.08.21"]
[Round "2"]
[White "Gryga, Daryna"]
[Black "Vojinovic, Anastasija"]
[Result "1/2-1/2"]
[ECO "C50"]
[WhiteElo "1756"]
[BlackElo "1304"]
[Annotator "NA RC"]
[PlyCount "68"]
[EventDate "2018.08.20"]
[EventType "swiss"]
[EventCountry "LAT"]
[SourceTitle "playchess.com"]
[Source "ChessBase"]
[SourceQuality "1"]
[TimeControl "40/5400+30:1800+30"]

1. e4 {[%emt 0:00:00]} e5 {[%emt 0:00:22]} 2. Nf3 {[%emt 0:00:27]} Nc6 {[%emt 0:00:54]} 3. Bc4 {[%emt 0:00:53]} Bc5 {[%emt 0:02:13]} 4. O-O {[%emt 0:01:05]} Nf6 {[%emt 0:01:32]} 5. Nc3 {[%emt 0:00:23]} d6 {[%emt 0:02:31]} 6. h3 {[%emt 0:02:00]} Be6 {[%emt 0:01:50]} 7. Bxe6 {[%emt 0:08:04]} fxe6 {[%emt 0:01:01]} 8. d3 {[%emt 0:02:14]} a6 {[%emt 0:05:24]} 9. Re1 {[%emt 0:04:45]} O-O {[%emt 0:05:38]} 10. Be3 {[%emt 0:01:15]} Nd4 {[%emt 0:06:03]} 11. Bxd4 {[%emt 0:11:01]} Bxd4 {[%emt 0:01:40]} 12. Qd2 {[%emt 0:02:41]} Nh5 {[%emt 0:05:05]} 13. Nxd4 {[%emt 0:06:33]} exd4 {[%emt 0:00:42]} 14. Ne2 {[%emt 0:00:31]} e5 {[%emt 0:01:52]} 15. c3 dxc3 {[%emt 0:06:19]} 16. bxc3 {[%emt 0:02:19]} Nf4 {[%emt 0:07:08]} 17. Nxf4 {[%emt 0:00:17]} Rxf4 {[%emt 0:00:29]} 18. d4 {[%emt 0:00:56]} Qe7 {[%emt 0:05:19]} 19. Qc2 {[%emt 0:00:41]} Raf8 {[%emt 0:02:41]} 20. Re2 {[%emt 0:00:37]} Qg5 {[%emt 0:02:10]} 21. Kh2 {[%emt 0:07:39]} Qf6 {[%emt 0:01:38]} 22. Rf1 {[%emt 0:01:29]} Rf7 {[%emt 0:02:14]} 23. Qd2 {[%emt 0:00:21]} Qe6 {[%emt 0:01:26]} 24. Qc2 {[%emt 0:00:18]} Qf6 {[%emt 0:00:15]} 25. Qb2 {[%emt 0:00:16]} b6 {[%emt 0:00:55]} 26. Qd2 {[%emt 0:00:16]} Qe6 {[%emt 0:00:47]} 27. Qd3 {[%emt 0:00:16]} a5 {[%emt 0:00:51]} 28. Qa6 {[%emt 0:01:52]} h6 {[%emt 0:01:15]} 29. Qd3 {[%emt 0:00:35]} Qf6 {[%emt 0:01:15]} 30. Qe3 {[%emt 0:01:46]} Qe6 {[%emt 0:01:10]} 31. Rd1 {[%emt 0:01:24]} g5 {[%emt 0:02:41]} 32. Rdd2 {[%emt 0:04:06]} Qf6 {[%emt 0:02:14]} 33. Qg3 {[%emt 0:06:11]} Rf8 {[%emt 0:00:57]} 34. Kg1 {[%emt 0:05:31]} Rf7 {[%emt 0:01:25]} 1/2-1/2

[Event "EYCC Girls U10 2018"]
[Site "Riga"]
[Date "2018.08.21"]
[Round "2"]
[White "Vlasova, Olesia"]
[Black "Rahimova, Aysel"]
[Result "0-1"]
[ECO "B27"]
[WhiteElo "1693"]
[BlackElo "1303"]
[Annotator "NA RC"]
[PlyCount "133"]
[EventDate "2018.08.20"]
[EventType "swiss"]
[EventCountry "LAT"]
[SourceTitle "playchess.com"]
[Source "ChessBase"]
[SourceQuality "1"]
[TimeControl "40/5400+30:1800+30"]

1. e4 {[%emt 0:00:00]} c5 {[%emt 0:00:00]} 2. Nf3 {[%emt 0:00:00]} g6 {[%emt 0:00:00]} 3. d4 {[%emt 0:00:00]} cxd4 {[%emt 0:00:02]} 4. Qxd4 {[%emt 0:00:05]} Nf6 {[%emt 0:01:40]} 5. e5 {[%emt 0:08:29]} Nc6 {[%emt 0:02:03]} 6. Qa4 {[%emt 0:05:15]} Nd5 {[%emt 0:02:06]} 7. Qe4 {[%emt 0:05:15]} Nb6 {[%emt 0:02:37]} 8. Nc3 {[%emt 0:04:22]} Bg7 {[%emt 0:04:37]} 9. Be2 {[%emt 0:02:09]} O-O {[%emt 0:01:53]} 10. Bf4 {[%emt 0:02:09]} f6 {[%emt 0:10:18]} 11. exf6 {[%emt 0:03:58]} Rxf6 {[%emt 0:06:11]} 12. O-O-O {[%emt 0:12:05]} d6 {[%emt 0:17:08]} 13. a3 {[%emt 0:02:28]} Bf5 {[%emt 0:02:37]} 14. Qe3 {[%emt 0:02:50]} Re6 {[%emt 0:06:20]} 15. Qd2 {[%emt 0:00:55]} Bxc3 {[%emt 0:05:24]} 16. bxc3 {[%emt 0:01:00]} Qc7 {[%emt 0:05:24]} 17. h4 {[%emt 0:06:52]} Na5 {[%emt 0:10:37]} 18. Nd4 {[%emt 0:08:00]} Qc5 {[%emt 0:02:49]} 19. Nb5 {[%emt 0:01:41]} a6 {[%emt 0:03:06]} 20. Be3 {[%emt 0:01:19]} Rxe3 {[%emt 0:02:48]} 21. Qxe3 {[%emt 0:01:07]} Qxe3+ {[%emt 0:00:16]} 22. fxe3 {[%emt 0:00:08]} axb5 {[%emt 0:00:18]} 23. Bxb5 {[%emt 0:00:26]} Nbc4 {[%emt 0:00:38]} 24. Rde1 {[%emt 0:06:22]} Nxa3 {[%emt 0:00:53]} 25. Bd3 {[%emt 0:00:16]} Bxd3 {[%emt 0:00:52]} 26. cxd3 {[%emt 0:00:07]} Nb5 {[%emt 0:01:19]} 27. Kb2 {[%emt 0:01:51]} Nc6 {[%emt 0:00:41]} 28. c4 {[%emt 0:01:00]} Ne5 {[%emt 0:03:03]} 29. Kc2 {[%emt 0:06:14]} Nc7 {[%emt 0:02:00]} 30. Ra1 {[%emt 0:00:27]} Rxa1 {[%emt 0:00:53]} 31. Rxa1 {[%emt 0:00:01]} Na6 {[%emt 0:00:15]} 32. Rb1 {[%emt 0:00:12]} Kf7 {[%emt 0:01:22]} 33. Kc3 {[%emt 0:00:47]} Nc5 {[%emt 0:00:22]} 34. d4 {[%emt 0:00:59]} Ne4+ {[%emt 0:00:06]} 35. Kb4 {[%emt 0:02:30]} Nc6+ {[%emt 0:00:44]} 36. Ka3 {[%emt 0:00:39]} Na5 {[%emt 0:00:15]} 37. Rc1 {[%emt 0:05:08]} Nd2 {[%emt 0:00:45]} 38. c5 {[%emt 0:00:07]} d5 {[%emt 0:02:16]} 39. Kb4 {[%emt 0:01:04]} Nac4 {[%emt 0:00:28]} 40. Rc2 {[%emt 0:00:00]} Ke6 {[%emt 0:00:00]} 41. Ra2 {[%emt 0:03:58]} Nf1 {[%emt 0:02:27]} 42. e4 {[%emt 0:00:42]} Nfe3 {[%emt 0:01:32]} 43. e5 {[%emt 0:00:26]} Kd7 {[%emt 0:02:40]} 44. Rf2 {[%emt 0:00:54]} Nf5 {[%emt 0:03:25]} 45. Kc3 {[%emt 0:03:10]} Nce3 {[%emt 0:00:55]} 46. Kd2 {[%emt 0:02:07]} Nc4+ {[%emt 0:00:55]} 47. Kd3 {[%emt 0:01:10]} Nxh4 {[%emt 0:00:31]} 48. g4 {[%emt 0:00:18]} Ke6 {[%emt 0:01:54]} 49. Ke2 {[%emt 0:01:21]} g5 {[%emt 0:00:22]} 50. Rh2 {[%emt 0:00:14]} Na5 {[%emt 0:02:50]} 51. Rh1 {[%emt 0:01:11]} Nb3 {[%emt 0:01:08]} 52. Ke3 {[%emt 0:00:50]} Na5 {[%emt 0:02:14]} 53. Kf2 {[%emt 0:00:19]} Nc4 {[%emt 0:01:01]} 54. Rh2 {[%emt 0:00:11]} Nd2 {[%emt 0:00:59]} 55. Ke2 {[%emt 0:00:38]} Ndf3 {[%emt 0:00:16]} 56. Rh1 {[%emt 0:01:08]} Nxd4+ {[%emt 0:00:11]} 57. Kd3 {[%emt 0:00:15]} Ndf3 {[%emt 0:00:31]} 58. Rb1 {[%emt 0:00:27]} Nxe5+ {[%emt 0:00:32]} 59. Ke2 {[%emt 0:00:10]} Nxg4 {[%emt 0:00:13]} 60. Rxb7 {[%emt 0:00:07]} Ne5 {[%emt 0:00:27]} 61. Rb6+ {[%emt 0:00:08]} Kd7 {[%emt 0:03:44]} 62. Rh6 {[%emt 0:00:08]} d4 {[%emt 0:00:45]} 63. Rxh7 {[%emt 0:00:09]} d3+ {[%emt 0:00:09]} 64. Kd1 {[%emt 0:00:15]} Nhf3 {[%emt 0:00:40]} 65. Rh3 {[%emt 0:00:30]} g4 {[%emt 0:00:25]} 66. Rg3 {[%emt 0:00:05]} Nc4 {[%emt 0:00:24]} 67. Rxg4 {[%emt 0:01:33]} 0-1